bitfinex-derivatives/quotes_BNBF0:USTF0_20251225
["timestamp","ask_amount","ask_price","bid_price","bid_amount"]
[1766656809274,0.89007488,841.35,840.64,0.89094006]
[1766656812173,0.89007488,841.35,840.63,0.89094006]
[1766656814177,0.89007488,841.36,840.63,0.89094006]
[1766656815576,0.89007488,841.35,840.63,0.89094006]
[1766656817177,0.89007488,841.36,840.63,0.89094006]
[1766656819180,0.89007488,841.36,840.62,0.89094006]
[1766656821477,0.89007488,841.35,840.62,0.89094006]
[1766656822178,0.89007488,841.35,840.61,0.89094006]
[1766656824581,0.89007488,841.34,840.61,0.89094006]
[1766656825281,0.89007488,841.33,840.59,0.89094006]
[1766656827385,0.89007488,841.33,840.58,0.89094006]
[1766656830385,0.89007488,841.34,840.58,0.89094006]
[1766656844005,0.89007488,841.35,840.59,0.89094006]
[1766656844598,0.89007488,841.34,840.59,0.89094006]
[1766656849102,0.89007488,841.33,840.59,0.89094006]
[1766656851204,0.89007488,841.33,840.6,0.89094006]
[1766656853209,0.89007488,841.32,840.6,0.89094006]
[1766656861113,0.89007488,841.32,840.61,0.89094006]
[1766656866315,0.89007488,841.31,840.61,0.89094006]
[1766656866916,0.20688241,841.23,840.61,0.89094006]
[1766656872923,0.20688241,841.23,840.62,0.89094006]
[1766656874118,0.20688241,841.23,840.63,0.89094006]
[1766656875625,0.20688241,841.23,840.62,0.89094006]
[1766656878927,2.95255099,842.24,839.79,0.01501146]
[1766656878928,0.89007488,841.37,840.66,0.89094006]
[1766656879131,0.89007488,841.48,840.77,0.89094006]
[1766656879325,0.20685843,841.41,840.75,0.89094006]
[1766656879630,0.89007488,841.51,840.75,0.89094006]
[1766656879936,0.20683937,841.41,840.75,0.89094006]
[1766656880232,0.20683937,841.41,840.74,0.89094006]
[1766656881332,0.20683937,841.41,840.73,0.89094006]
[1766656881535,0.20683937,841.41,840.74,0.89094006]
[1766656882035,0.20683937,841.41,840.75,0.89094006]
[1766656882234,0.20683937,841.41,840.74,0.89094006]
[1766656883438,0.20683937,841.41,840.73,0.89094006]
[1766656885237,0.20683937,841.41,840.72,0.89094006]
[1766656887344,0.20683937,841.41,840.71,0.89094006]
[1766656889248,0.20683937,841.41,840.7,0.89094006]
[1766656893348,0.20683937,841.41,840.69,0.89094006]
[1766656905568,0.20683937,841.41,840.71,0.89094006]
[1766656905769,0.20683937,841.41,840.73,0.89094006]
[1766656907972,0.20683937,841.41,840.71,0.89094006]
[1766656909374,0.20683937,841.41,840.7,0.89094006]
[1766656910270,0.20683937,841.41,840.71,0.89094006]
[1766656914275,0.20683937,841.41,840.72,0.89094006]
[1766656916281,0.20683937,841.41,840.73,0.89094006]
[1766656917485,0.20683937,841.41,840.7,0.89094006]
[1766656917684,0.20683937,841.41,840.68,0.89094006]
[1766656918380,0.20683937,841.41,840.69,0.89094006]
[1766656919185,0.20683937,841.41,840.7,0.89094006]
[1766656919885,0.20683937,841.41,840.69,0.89094006]
[1766656920381,0.20683937,841.41,840.7,0.89094006]
[1766656920785,0.20683937,841.41,840.68,0.89094006]
[1766656921285,0.20683937,841.41,840.69,0.89094006]
[1766656921680,0.20683937,841.41,840.68,0.89094006]
[1766656921886,1.09691425,841.41,840.62,0.89094006]
[1766656922082,1.09691425,841.41,840.6,0.89094006]
[1766656922282,0.89007488,841.4,840.61,0.89094006]
[1766656923285,0.89007488,841.4,840.62,0.89094006]
[1766656924183,0.89007488,841.4,840.61,0.89094006]
[1766656925184,0.89007488,841.4,839.77,0.01091943]
[1766656925185,1.09691425,841.41,840.6,0.89094006]
[1766656927291,0.20683937,841.41,840.59,0.89094006]
[1766656927594,0.20683937,841.41,840.44,1.18998606]
[1766656927793,0.20683937,841.41,840.59,0.88855061]
[1766656929195,0.20683937,841.41,840.58,0.88855061]
[1766656933298,0.20683937,841.41,840.57,0.88855061]
[1766656934096,0.20683937,841.41,840.42,1.18998606]
[1766656934097,0.20683937,841.41,840.58,0.88855061]
[1766656937297,0.20683937,841.41,840.57,0.88855061]
[1766656944803,0.20683937,841.41,840.58,0.88855061]
[1766656948106,0.20683937,841.41,840.59,0.88855061]
[1766656951209,0.20683937,841.41,840.6,0.88855061]
[1766656954408,0.20683937,841.41,840.61,0.88855061]
[1766656957312,0.20683937,841.41,840.62,0.88855061]
[1766656957511,0.20683937,841.41,840.64,0.88855061]
[1766656958610,0.20683937,841.41,840.66,0.88855061]
[1766656960215,0.20683937,841.41,840.67,0.88855061]
[1766656962414,0.20683937,841.41,840.68,0.88855061]
[1766656963318,0.20683937,841.41,840.69,0.88855061]
[1766656963718,0.20683937,841.41,840.68,0.88855061]
[1766656966519,0.8907427,841.38,840.64,0.88855061]
[1766656967018,0.8907427,841.37,840.63,0.88855061]
[1766656981232,0.8907427,841.38,840.63,0.88855061]
[1766656982136,0.8907427,841.37,840.63,0.88855061]
[1766656982336,0.8907427,841.38,840.63,0.88855061]
[1766656982737,0.8907427,841.37,840.62,0.88855061]
[1766656989838,0.8907427,841.35,840.6,0.88855061]
[1766656994248,0.8907427,841.36,840.6,0.88855061]
[1766657007160,0.8907427,841.35,840.61,0.88855061]
[1766657008756,0.8907427,841.35,840.46,1.18998606]
[1766657008757,0.8907427,841.34,840.6,0.88855061]
[1766657010257,0.8907427,841.34,840.61,0.88855061]
[1766657011163,0.8907427,841.33,840.61,0.88855061]
[1766657028887,0.8907427,841.33,840.62,0.88855061]
[1766657030190,0.8907427,841.32,840.62,0.88855061]
[1766657043801,0.8907427,841.32,840.63,0.88855061]
[1766657072726,0.8907427,841.31,840.63,0.88855061]
[1766657073226,0.8907427,841.31,840.62,0.88855061]
[1766657073826,0.8907427,841.3,840.61,0.88855061]
[1766657074924,0.8907427,841.28,840.59,0.88855061]
[1766657075326,0.8907427,841.29,840.58,0.88855061]
[1766657079631,0.8907427,841.29,840.57,0.88855061]
[1766657079834,0.8907427,841.27,840.55,0.88855061]
[1766657080131,0.20690455,841.12,840.55,0.88855061]
[1766657080335,0.20690455,841.12,840.54,0.88855061]
[1766657080530,0.20690455,841.12,840.53,0.88855061]
[1766657082436,0.20690455,841.12,840.51,0.88855061]
[1766657084634,0.20690455,841.12,840.5,0.88855061]
[1766657088340,0.20690455,841.12,840.49,0.88855061]
[1766657090140,0.20690455,841.12,840.47,0.88855061]
[1766657092342,0.20690455,841.12,840.46,0.88855061]
[1766657103049,0.20690455,841.12,840.45,0.88855061]
[1766657103249,0.20690455,841.12,840.44,0.88855061]
[1766657103454,0.20690455,841.12,840.43,0.88855061]
[1766657103850,0.20690455,841.12,840.38,0.88855061]
[1766657104150,0.20690455,841.12,840.32,0.88855061]
[1766657104549,0.20690455,841.12,840.31,0.88855061]
[1766657106350,0.20690455,841.12,840.3,0.88855061]
[1766657108454,0.20690455,841.12,840.29,0.88855061]
[1766657111156,1.09764725,841.12,840.24,0.88855061]
[1766657111356,0.8907427,841.03,840.13,0.88855061]
[1766657112556,0.8907427,841.04,840.12,0.88855061]
[1766657113553,0.8907427,841.05,840.11,0.88855061]
[1766657114559,0.8907427,841.06,840.1,0.88855061]
[1766657115353,0.8907427,841.07,840.09,0.88855061]
[1766657116054,0.8907427,841.06,840.09,0.88855061]
[1766657116457,0.8907427,841.07,840.09,0.88855061]
[1766657117554,0.8907427,841.07,840.08,0.88855061]
[1766657117953,0.8907427,841.09,840.1,0.88855061]
[1766657118354,0.8907427,841.1,840.1,0.88855061]
[1766657122359,0.8907427,841.1,840.09,0.88855061]
[1766657123359,0.8907427,841.1,840.1,0.88855061]
[1766657123558,0.8907427,841.1,840.09,0.88855061]
[1766657124258,0.8907427,841.1,840.1,0.88855061]
[1766657124462,0.8907427,841.1,840.09,0.88855061]
[1766657125161,0.8907427,841.1,840.1,0.88855061]
[1766657125360,0.8907427,841.1,840.09,0.88855061]
[1766657128258,0.8907427,841.1,840.1,0.88855061]
[1766657133262,0.8907427,841.09,840.1,0.88855061]
[1766657134164,0.8907427,841.09,840.11,0.88855061]
[1766657136372,0.8907427,841.08,840.11,0.88855061]
[1766657137373,0.8907427,841.08,840.12,0.88855061]
[1766657139271,0.8907427,841.07,840.12,0.88855061]
[1766657140473,0.8907427,841.07,840.13,0.88855061]
[1766657141376,0.8907427,841.06,840.14,0.88855061]
[1766657142474,0.8907427,841.05,840.14,0.88855061]
[1766657143372,0.8907427,841.05,840.15,0.88855061]
[1766657144478,0.8907427,841.04,840.16,0.88855061]
[1766657146381,0.8907427,841.04,840.01,1.18998606]
[1766657146382,0.8907427,841.03,840.17,0.88855061]
[1766657147380,0.8907427,841.01,840.18,0.88855061]
[1766657147582,0.20690455,841.12,840.03,1.18998606]
[1766657147782,0.89098902,841.01,840.18,0.89062914]
[1766657148377,0.89098902,841.0,840.19,0.89062914]
[1766657149583,0.89098902,840.98,840.18,0.89062914]
[1766657150181,0.89098902,841.0,840.2,0.89062914]
[1766657150382,0.89098902,840.99,840.2,0.89062914]
[1766657151382,0.89098902,840.99,840.21,0.89062914]
[1766657152586,0.89098902,840.98,840.21,0.89062914]
[1766657153287,0.89098902,840.98,840.22,0.89062914]
[1766657154388,0.89098902,840.98,839.38,0.01492925]
[1766657154389,0.89098902,840.97,840.23,0.89062914]
[1766657155390,0.89098902,840.95,840.25,0.89062914]
[1766657162196,0.89098902,840.75,840.06,0.89062914]
[1766657162396,1.78239789,841.05,840.02,0.89062914]
[1766657162397,0.89098902,840.74,840.02,0.89062914]
[1766657162597,0.89098902,840.78,840.02,0.89062914]
[1766657162998,0.89098902,840.84,840.08,0.89062914]
[1766657163198,0.89098902,840.85,840.09,0.89062914]
[1766657163500,0.89098902,840.9,840.14,0.89062914]
[1766657164191,0.89098902,840.91,840.14,0.89062914]
[1766657170912,0.89098902,840.92,840.14,0.89062914]
[1766657172509,0.89098902,840.92,839.99,1.18998606]
[1766657172510,0.89098902,840.92,840.15,0.89062914]
[1766657173512,0.89098902,840.94,840.17,0.89062914]
[1766657175012,0.89098902,840.95,840.17,0.89062914]
[1766657175313,0.89098902,840.98,840.2,0.89062914]
[1766657176610,0.89098902,840.98,840.05,1.18998606]
[1766657176611,0.89098902,840.99,840.21,0.89062914]
[1766657182015,0.89098902,841.03,840.24,0.89062914]
[1766657183517,0.89098902,841.06,840.27,0.89062914]
[1766657183915,0.89098902,841.09,840.3,0.89062914]
[1766657184411,0.89098902,841.09,840.29,0.89062914]
[1766657186417,0.89098902,841.1,840.28,0.89062914]
[1766657188515,0.89098902,841.11,840.28,0.89062914]
[1766657190416,0.89098902,841.11,840.27,0.89062914]
[1766657192317,1.09789357,841.12,840.27,0.89062914]
[1766657194319,1.09789357,841.12,840.26,0.89062914]
[1766657197519,0.20690455,841.12,840.26,0.89062914]
[1766657200422,0.20690455,841.12,840.25,0.89062914]
[1766657205628,0.20690455,841.12,840.27,0.89062914]
[1766657207434,0.20690455,841.12,840.28,0.89062914]
[1766657211333,0.20690455,841.12,840.29,0.89062914]
[1766657214343,0.20690455,841.12,840.3,0.89062914]
[1766657215343,1.09789357,841.12,840.3,0.89062914]
[1766657217345,0.89098902,841.11,840.31,0.89062914]
[1766657219240,0.89098902,841.1,840.32,0.89062914]
[1766657222348,0.89098902,841.1,840.33,0.89062914]
[1766657223448,0.89098902,841.09,840.33,0.89062914]
[1766657223945,0.8917767,841.09,840.33,0.89110647]
[1766657225352,0.8917767,841.0,840.26,0.89110647]
[1766657226547,0.8917767,841.0,840.27,0.89110647]
[1766657227851,0.8917767,841.0,840.26,0.89110647]
[1766657228048,0.8917767,840.99,840.26,0.89110647]
[1766657229253,0.8917767,841.0,840.26,0.89110647]
[1766657230349,0.8917767,841.0,840.25,0.89110647]
[1766657230953,0.8917767,840.93,840.19,0.89110647]
[1766657231451,0.8917767,840.94,840.18,0.89110647]
[1766657232350,0.8917767,840.95,840.17,0.89110647]
[1766657233254,0.8917767,840.96,840.17,0.89110647]
[1766657234351,0.8917767,840.96,840.16,0.89110647]
[1766657236256,0.8917767,840.97,840.15,0.89110647]
[1766657239352,0.8917767,840.98,840.14,0.89110647]
[1766657244256,0.20690455,841.12,839.98,1.18998606]
[1766657244257,0.8917767,840.99,840.13,0.89110647]
[1766657257475,0.8917767,840.98,840.14,0.89110647]
[1766657262374,0.8917767,840.97,840.15,0.89110647]
[1766657264379,0.8917767,840.96,840.16,0.89110647]
[1766657267380,0.8917767,840.95,840.17,0.89110647]
[1766657269282,0.8917767,840.94,840.18,0.89110647]
[1766657270483,0.8917767,840.93,840.19,0.89110647]
[1766657272282,0.8917767,840.92,840.2,0.89110647]
[1766657272786,1.18826526,841.07,840.05,1.18998606]
[1766657272980,0.8923831,840.92,840.2,0.89199389]
[1766657274281,0.8923831,840.91,840.2,0.89199389]
[1766657275285,0.8923831,840.9,840.22,0.89199389]
[1766657280390,0.20698577,840.79,840.22,0.89199389]
[1766657311223,0.20698577,840.79,840.07,1.18998606]
[1766657311526,0.20698577,840.79,840.22,0.89250402]
[1766657328232,0.20698577,840.79,840.21,0.89250402]
[1766657347748,0.20698577,840.79,840.2,0.89250402]
[1766657349250,0.20698577,840.79,840.2,0.89214417]
[1766657360259,0.20698577,840.79,840.18,0.89214417]
[1766657361255,0.20698577,840.79,840.17,0.89214417]
[1766657369265,0.20698577,840.79,840.16,0.89214417]
[1766657370462,0.20698577,840.79,840.15,0.89214417]
[1766657393174,0.20698577,840.79,840.16,0.89214417]
[1766657401487,0.20698577,840.79,840.14,0.89214417]
[1766657403886,0.20698577,840.79,840.13,0.89214417]
[1766657406990,0.89278879,840.69,839.98,0.89214417]
[1766657407190,0.89278879,840.71,839.96,0.89214417]
[1766657408086,0.89278879,840.73,839.95,0.89214417]
[1766657409093,0.89278879,840.74,839.94,0.89214417]
[1766657410196,0.89278879,840.74,839.93,0.89214417]
[1766657411197,0.89278879,840.75,839.93,0.89214417]
[1766657411396,0.89278879,840.75,839.92,0.89214417]
[1766657412295,0.89278879,840.76,839.92,0.89214417]
[1766657413100,0.89278879,840.76,839.91,0.89214417]
[1766657414898,0.89278879,840.77,839.91,0.89214417]
[1766657415198,0.89278879,840.78,839.92,0.89214417]
[1766657415397,1.09977456,840.79,839.93,0.89214417]
[1766657416202,1.09977456,840.79,839.92,0.89214417]
[1766657419205,1.09977456,840.79,839.91,0.89214417]
[1766657419411,0.89278879,840.74,839.86,0.89214417]
[1766657420205,0.89278879,840.74,839.85,0.89214417]
[1766657420605,0.89278879,840.72,839.83,0.89214417]
[1766657421002,0.89278879,840.69,839.8,0.89214417]
[1766657421303,0.89278879,840.7,839.8,0.89214417]
[1766657422107,0.89278879,840.7,839.79,0.89214417]
[1766657423210,0.89278879,840.71,839.79,0.89214417]
[1766657424302,0.89278879,840.71,839.78,0.89214417]
[1766657424507,0.89278879,840.7,839.78,0.89214417]
[1766657425206,0.89278879,840.71,839.77,0.89214417]
[1766657426108,0.89278879,840.63,839.68,0.89214417]
[1766657427310,0.89278879,840.64,839.67,0.89214417]
[1766657428209,0.89278879,840.65,839.67,0.89214417]
[1766657429105,0.89278879,840.65,839.66,0.89214417]
[1766657430107,0.89278879,840.66,839.66,0.89214417]
[1766657430407,0.89278879,840.61,839.61,0.89214417]
[1766657431113,0.89278879,840.62,839.61,0.89214417]
[1766657431312,0.89278879,840.6,839.55,0.89214417]
[1766657431512,0.89278879,840.56,839.55,0.89214417]
[1766657432409,0.89278879,840.57,839.54,0.89214417]
[1766657433108,0.89278879,840.58,839.54,0.89214417]
[1766657434108,0.89278879,840.59,839.53,0.89214417]
[1766657434310,0.89278879,840.58,839.53,0.89214417]
[1766657435113,0.89278879,840.59,839.52,0.89214417]
[1766657437109,0.89278879,840.6,839.52,0.89214417]
[1766657439115,0.89278879,840.6,839.51,0.89214417]
[1766657439317,0.89278879,840.6,839.52,0.89214417]
[1766657440114,0.89278879,840.6,839.51,0.89214417]
[1766657440316,0.89278879,840.6,839.52,0.89214417]
[1766657443313,0.89278879,840.59,839.52,0.89214417]
[1766657444216,0.89278879,840.6,839.52,0.89214417]
[1766657444417,0.89278879,840.59,839.52,0.89214417]
[1766657446320,0.89278879,840.58,839.52,0.89214417]
[1766657448120,0.89278879,840.57,839.53,0.89214417]
[1766657449117,1.18826526,840.72,839.54,0.89214417]
[1766657449118,0.89278879,840.56,839.54,0.89214417]
[1766657449322,0.89278879,840.56,839.53,0.89214417]
[1766657450121,0.89278879,840.55,839.53,0.89214417]
[1766657451118,0.89278879,840.54,839.54,0.89214417]
[1766657452422,0.89278879,840.53,839.54,0.89214417]
[1766657456126,0.89278879,840.52,839.54,0.89214417]
[1766657457227,0.89278879,840.52,839.55,0.89214417]
[1766657459126,0.89278879,840.51,839.56,0.89214417]
[1766657461131,0.89278879,840.5,839.57,0.89214417]
[1766657461434,0.89278879,840.39,839.45,0.89214417]
[1766657462130,0.89278879,840.39,839.46,0.89214417]
[1766657462330,0.20698577,840.79,839.48,0.89214417]
[1766657462331,0.89278879,840.41,839.48,0.89214417]
[1766657463131,0.89278879,840.4,839.48,0.89214417]
[1766657464127,0.89278879,840.39,839.49,0.89214417]
[1766657465130,0.89278879,840.39,839.5,0.89214417]
[1766657466127,0.89278879,840.38,839.5,0.89214417]
[1766657466331,0.89278879,840.39,839.5,0.89214417]
[1766657467133,0.89278879,840.38,839.51,0.89214417]
[1766657467428,0.89278879,840.38,839.5,0.89214417]
[1766657468134,0.89278879,840.38,839.51,0.89214417]
[1766657469236,0.89278879,840.39,839.54,0.89214417]
[1766657470136,0.89278879,840.38,839.54,0.89214417]
[1766657470933,0.89278879,840.38,839.55,0.89214417]
[1766657474040,0.89278879,840.38,839.56,0.89214417]
[1766657474338,0.89278879,840.38,839.57,0.89214417]
[1766657474840,0.89278879,840.38,839.56,0.89214417]
[1766657475142,0.89278879,840.38,839.57,0.89214417]
[1766657480549,0.20711697,840.36,839.57,0.89214417]
[1766657481252,0.20711697,840.36,839.58,0.89214417]
[1766657481551,0.20711697,840.36,838.73,0.01389425]
[1766657481552,0.89278879,840.47,839.67,0.89214417]
[1766657481748,0.89278879,840.51,839.71,0.89214417]
[1766657481949,1.09988419,840.53,839.73,0.89214417]
[1766657482147,0.89278879,840.55,839.75,0.89214417]
[1766657482353,0.20707691,840.53,839.74,0.89214417]
[1766657485353,0.20707691,840.53,839.75,0.89214417]
[1766657488252,0.20707691,840.53,839.74,0.89214417]
[1766657490354,0.20707691,840.53,839.73,0.89214417]
[1766657492154,0.20707691,840.53,839.75,0.89214417]
[1766657492360,0.20707691,840.53,839.74,0.89214417]
[1766657495362,0.20707691,840.53,839.73,0.89214417]
[1766657499164,0.20707691,840.53,839.72,0.89214417]
[1766657501263,0.20707691,840.53,839.73,0.89214417]
[1766657503164,0.20707691,840.53,839.72,0.89214417]
[1766657506061,0.20707691,840.53,839.57,1.18998606]
[1766657506265,0.20707691,840.53,839.72,0.89007584]
[1766657506462,0.20707691,840.53,839.73,0.89007584]
[1766657510265,0.20707691,840.53,839.74,0.89007584]
[1766657511569,0.20707691,840.53,839.75,0.89007584]
[1766657513366,0.20707691,840.53,839.76,0.89007584]
[1766657516273,0.20707691,840.53,839.77,0.89007584]
[1766657519269,0.20707691,840.53,839.78,0.89007584]
[1766657520871,0.20707691,840.53,839.8,0.89007584]
[1766657521075,0.20707691,840.53,839.82,0.89007584]
[1766657521273,0.20707691,840.53,839.84,0.89007584]
[1766657521472,0.20707691,840.53,839.85,0.89007584]
[1766657522370,0.20707691,840.53,839.86,0.89007584]
[1766657523374,0.20707691,840.53,839.87,0.89007584]
[1766657524273,0.20707691,840.53,839.88,0.89007584]
[1766657524571,0.88971234,840.69,839.88,0.89007584]
[1766657524776,0.88971234,840.83,840.02,0.89007584]
[1766657524976,0.20703441,840.72,840.02,0.89007584]
[1766657526273,0.20703441,840.72,840.01,0.89007584]
[1766657527379,0.20703441,840.72,840.0,0.89007584]
[1766657527580,0.20703441,840.72,840.03,0.89007584]
[1766657528479,0.20703441,840.72,839.19,0.00867334]
[1766657528480,0.20703441,840.72,840.02,0.89007584]
[1766657529179,0.20703441,840.72,840.0,0.89007584]
[1766657529376,0.20703441,840.72,839.99,0.89007584]
[1766657531381,0.20703441,840.72,839.98,0.89007584]
[1766657532382,0.20703441,840.72,839.97,0.89007584]
[1766657535382,0.20703441,840.72,839.96,0.89007584]
[1766657536483,0.20703441,840.72,839.97,0.89007584]
[1766657538285,0.20703441,840.72,839.96,0.89007584]
[1766657542792,0.20703441,840.72,839.95,0.89007584]
[1766657544890,0.20703441,840.72,839.93,0.89007584]
[1766657546095,0.20703441,840.72,839.87,0.89007584]
[1766657549296,0.20703441,840.72,839.88,0.89007584]
[1766657552297,0.20703441,840.72,839.89,0.89007584]
[1766657555102,0.20703441,840.72,839.88,0.89007584]
[1766657555401,0.20703441,840.72,839.84,0.89007584]
[1766657558304,0.20703441,840.72,839.85,0.89007584]
[1766657560607,1.09674675,840.72,839.84,0.89007584]
[1766657560804,0.88971234,840.71,839.83,0.89007584]
[1766657562307,0.88971234,840.7,839.84,0.89007584]
[1766657567812,1.09674675,840.72,839.86,0.89007584]
[1766657578328,1.09674675,840.72,839.71,1.18998606]
[1766657578329,0.88971234,840.71,839.87,0.89007584]
[1766657582531,0.88971234,840.71,839.88,0.89007584]
[1766657583429,0.88971234,840.7,839.88,0.89007584]
[1766657585335,0.88971234,840.69,839.89,0.89007584]
[1766657587136,0.88971234,840.61,839.81,0.89007584]
[1766657587337,0.88971234,840.58,839.79,0.89007584]
[1766657587732,0.88971234,840.57,839.78,0.89007584]
[1766657587937,0.88971234,840.49,839.69,0.89007584]
[1766657588433,0.88971234,840.5,839.69,0.89007584]
[1766657589339,0.88971234,840.51,839.68,0.89007584]
[1766657590938,0.88971234,840.5,839.67,0.89007584]
[1766657591138,0.88971234,840.45,839.62,0.89007584]
[1766657591340,0.88971234,840.47,839.6,0.89007584]
[1766657591639,0.88971234,840.42,839.55,0.89007584]
[1766657592340,0.88971234,840.38,839.48,0.89007584]
[1766657592540,0.88971234,840.37,839.48,0.89007584]
[1766657593241,0.88971234,840.39,839.47,0.89007584]
[1766657593841,0.88971234,840.36,839.44,0.89007584]
[1766657594336,0.88971234,840.22,839.26,0.89007584]
[1766657594942,0.88971234,840.21,839.25,0.89007584]
[1766657595138,0.88971234,840.21,839.24,0.89007584]
[1766657595342,0.88971234,840.2,839.17,0.89007584]
[1766657596336,0.88971234,840.23,839.15,0.89007584]
[1766657596542,0.88971234,840.23,839.14,0.89007584]
[1766657596742,0.88971234,840.25,839.16,0.89007584]
[1766657597138,0.88971234,840.25,839.17,0.89007584]
[1766657597442,0.88971234,840.27,839.15,0.89007584]
[1766657597640,0.88971234,840.36,839.24,0.89007584]
[1766657598351,0.88971234,840.37,839.22,0.89007584]
[1766657599343,0.88971234,840.38,839.21,0.89007584]
[1766657600243,0.88971234,840.39,839.21,0.89007584]
[1766657601239,0.88971234,840.39,839.2,0.89007584]
[1766657601445,0.88971234,840.4,839.2,0.89007584]
[1766657602344,0.88971234,840.4,838.89,1.78497909]
[1766657602345,0.88971234,840.4,839.19,0.89007584]
[1766657603244,0.88971234,840.41,839.18,0.89007584]
[1766657604345,0.88971234,840.42,839.18,0.89007584]
[1766657605242,0.88971234,840.42,839.17,0.89007584]
[1766657606842,0.88971234,840.52,839.27,0.89007584]
[1766657614551,0.88971234,840.52,839.28,0.89007584]
[1766657615353,0.88971234,840.51,839.28,0.89007584]
[1766657617353,0.88971234,840.5,839.29,0.89007584]
[1766657618548,0.88971234,840.51,839.3,0.89007584]
[1766657619149,0.88971234,840.55,839.34,0.89007584]
[1766657619354,0.88971234,840.54,839.35,0.89007584]
[1766657619550,0.88971234,840.38,839.18,0.89007584]
[1766657620058,0.88971234,840.41,839.22,0.89007584]
[1766657620357,0.88971234,840.41,839.23,0.89007584]
[1766657621456,0.88971234,840.4,839.23,0.89007584]
[1766657622357,0.88971234,840.4,839.08,1.18998606]
[1766657622358,0.88971234,840.4,839.24,0.89007584]
[1766657623357,0.88971234,840.39,839.25,0.89007584]
[1766657624362,0.88971234,840.38,839.25,0.89007584]
[1766657624563,0.88971234,840.36,839.23,0.89007584]
[1766657625064,0.88971234,840.35,839.23,0.89007584]
[1766657626364,0.88971234,840.34,839.24,0.89007584]
[1766657626764,0.88971234,840.34,839.23,0.89007584]
[1766657627060,0.20703441,840.72,839.22,0.89007584]
[1766657627061,0.88971234,840.33,839.22,0.89007584]
[1766657627260,0.88971234,840.31,839.21,0.89007584]
[1766657627465,0.88971234,840.3,839.22,0.89007584]
[1766657628266,0.88971234,840.29,839.23,0.89007584]
[1766657629062,0.88971234,840.27,839.21,0.89007584]
[1766657629267,0.88971234,840.24,839.21,0.89007584]
[1766657630364,0.88971234,840.24,838.91,1.78497909]
[1766657630365,0.88971234,840.23,839.23,0.89007584]
[1766657630568,0.88971234,840.19,839.19,0.89007584]
[1766657631270,0.88971234,840.18,839.21,0.89007584]
[1766657632271,0.88971234,840.16,839.22,0.89007584]
[1766657634475,0.88971234,840.15,839.23,0.89007584]
[1766657635273,0.88971234,840.14,839.24,0.89007584]
[1766657635868,0.88971234,840.11,839.21,0.89007584]
[1766657637371,0.88971234,840.11,839.22,0.89007584]
[1766657639377,0.88971234,840.11,839.21,0.89007584]
[1766657642173,0.88971234,840.12,839.21,0.89007584]
[1766657645277,0.88971234,840.12,839.05,1.18998606]
[1766657645278,0.88971234,840.12,839.2,0.89007584]
[1766657646283,0.88971234,840.12,839.19,0.89007584]
[1766657647985,0.88971234,840.15,839.22,0.89007584]
[1766657650184,0.88971234,840.15,839.21,0.89007584]
[1766657652086,1.18826526,840.3,839.06,1.18998606]
[1766657652287,0.88896504,840.15,839.21,0.8906658]
[1766657653283,0.88896504,840.15,839.22,0.8906658]
[1766657654386,0.88896504,840.19,839.26,0.8906658]
[1766657656085,0.88896504,840.19,839.27,0.8906658]
[1766657656488,0.88896504,840.19,839.28,0.8906658]
[1766657657493,0.88896504,840.33,839.42,0.8906658]
[1766657658292,0.88896504,840.32,839.42,0.8906658]
[1766657659288,0.88896504,840.33,839.42,0.8906658]
[1766657659488,0.88896504,840.32,839.42,0.8906658]
[1766657662194,0.88896504,840.32,839.43,0.8906658]
[1766657664293,0.88896504,840.31,839.43,0.8906658]
[1766657664494,0.88896504,840.32,839.44,0.8906658]
[1766657666294,0.88896504,840.32,839.43,0.8906658]
[1766657667394,0.88896504,840.33,839.43,0.8906658]
[1766657671296,0.88896504,840.34,839.42,0.8906658]
[1766657675295,0.88896504,840.34,839.41,0.8906658]
[1766657676294,0.88896504,840.35,839.41,0.8906658]
[1766657683206,0.88896504,840.33,839.39,0.8906658]
[1766657684308,0.88896504,840.32,839.4,0.8906658]
[1766657688412,0.88896504,840.31,839.41,0.8906658]
[1766657691409,0.88896504,840.3,839.42,0.8906658]
[1766657692412,0.88896504,840.29,839.41,0.8906658]
[1766657693312,0.88896504,840.28,839.42,0.8906658]
[1766657695312,0.88896504,840.27,839.43,0.8906658]
[1766657696311,0.88896504,840.27,839.44,0.8906658]
[1766657697213,0.20703441,840.72,839.44,0.8906658]
[1766657697214,0.88896504,840.26,839.44,0.8906658]
[1766657698316,0.88896504,840.25,839.45,0.8906658]
[1766657699315,1.78239789,840.55,838.61,0.01181821]
[1766657699316,0.88896504,840.24,839.46,0.8906658]
[1766657700211,0.88896504,840.23,839.47,0.8906658]
[1766657701015,0.88896504,840.14,839.37,0.8906658]
[1766657701216,0.88896504,839.46,838.53,0.01243948]
[1766657701414,2.95255099,840.58,838.29,1.78497909]
[1766657701415,0.88896504,839.57,838.29,1.78497909]
[1766657701917,0.88896504,839.62,838.34,1.78497909]
[1766657702218,0.88896504,839.52,838.16,1.78497909]
[1766657702514,0.70197969,839.51,838.16,1.78497909]
[1766657702718,0.70197969,839.5,838.16,1.78497909]
[1766657702915,0.70197969,839.49,838.16,1.78497909]
[1766657703118,0.70197969,839.48,838.16,1.78497909]
[1766657703318,0.70197969,839.47,838.13,1.78497909]